{"text_format":"1","workbook":"xlsx","n_sheets":2,"sheets":["فواتير","الأسعار"],"not_rendered":{"charts":0,"images":0,"macros":1,"external_links":2,"defined_names":0,"comments":0,"pivot_tables":0},"unopened":[],"bounds":{"document_bytes":16777216,"sheet_cells":100000,"rows_first":2000,"rows_last":500,"rows_between":2000,"halvings":0,"cell_chars":16384,"cell_head_chars":4096},"cells_cut":0,"cells_raw":0,"read":"whole","date_system":"1900"}

{"sheet":"فواتير","index":0,"n_rows":20,"n_cols":4,"rows_kept":20,"cut":false,"hidden":false,"merged":[]}
[]
[]
[]
["البيان","عدد","سعر الوحدة","الأجمالي"]
["لمبة  1 بول -24 فولت",7,{"$f":"IFERROR(IF(A5<>\"\",VLOOKUP(A5,[1]الأسعار!A:B,2,0),\" \"),\"\")","v":5},{"$f":"IF(OR(N(B5)=0,N(C5)=0,A5=\"\"),\"\",PRODUCT(B5,C5))","v":35}]
["لمبة 1 بول صفراء -12 فولت",8,7,{"$f":"IF(OR(N(B6)=0,N(C6)=0,A6=\"\"),\"\",PRODUCT(B6,C6))","v":56}]
[null,null,{"$f":"IFERROR(IF(A7<>\"\",VLOOKUP(A7,[1]الأسعار!A:B,2,0),\" \"),\"\")","v":" "},""]
[null,null,{"$f":"IFERROR(IF(A8<>\"\",VLOOKUP(A8,[1]الأسعار!A:B,2,0),\" \"),\"\")","v":" "},""]
[null,null,{"$f":"IFERROR(IF(A9<>\"\",VLOOKUP(A9,[1]الأسعار!A:B,2,0),\" \"),\"\")","v":" "},""]
[null,null,{"$f":"IFERROR(IF(A10<>\"\",VLOOKUP(A10,[1]الأسعار!A:B,2,0),\" \"),\"\")","v":" "},""]
[null,null,{"$f":"IFERROR(IF(A11<>\"\",VLOOKUP(A11,[1]الأسعار!A:B,2,0),\" \"),\"\")","v":" "},""]
[null,null,{"$f":"IFERROR(IF(A12<>\"\",VLOOKUP(A12,[1]الأسعار!A:B,2,0),\" \"),\"\")","v":" "},""]
[null,null,{"$f":"IFERROR(IF(A13<>\"\",VLOOKUP(A13,[1]الأسعار!A:B,2,0),\" \"),\"\")","v":" "},""]
[null,null,{"$f":"IFERROR(IF(A14<>\"\",VLOOKUP(A14,[1]الأسعار!A:B,2,0),\" \"),\"\")","v":" "},""]
[null,null,{"$f":"IFERROR(IF(A15<>\"\",VLOOKUP(A15,[1]الأسعار!A:B,2,0),\" \"),\"\")","v":" "},""]
[null,null,{"$f":"IFERROR(IF(A16<>\"\",VLOOKUP(A16,[1]الأسعار!A:B,2,0),\" \"),\"\")","v":" "},""]
[null,null,{"$f":"IFERROR(IF(A17<>\"\",VLOOKUP(A17,[1]الأسعار!A:B,2,0),\" \"),\"\")","v":" "},""]
[null,null,{"$f":"IFERROR(IF(A18<>\"\",VLOOKUP(A18,[1]الأسعار!A:B,2,0),\" \"),\"\")","v":" "},""]
[null,null,{"$f":"IFERROR(IF(A19<>\"\",VLOOKUP(A19,[1]الأسعار!A:B,2,0),\" \"),\"\")","v":" "},""]
["الأجمالي",null,null,{"$f":"SUM(D5:D15)","v":91}]

{"sheet":"الأسعار","index":1,"n_rows":101,"n_cols":2,"rows_kept":101,"cut":false,"hidden":false,"merged":[]}
[]
["لمبة  1 بول -24 فولت",5]
["لمبة  1 بول -24 فولت",5]
["لمبة 1 بول -12 فولت",5]
["لمبة 2 بول -12 فولت",5]
["لمبة 1 بول صفراء -12 فولت",15]
["لمبة 2 بول صفراء -12 فولت",15]
["لمبة 1 بول صفراء -24 فولت",15]
["لمبة بدون عكب - 12فولت",5]
["لمبة بدون عكب - 24 فولت",5]
["لمبة سفايا - 12 فولت",5]
["لمبة سفايا - 24 فولت",5]
["كلبس",0.5]
["كلبس + غطا",1]
["كلبس سماعة",0.5]
["كلبس دكر",0.5]
["ترملة 13 مم",3]
["ترملة 10 مم",2]
["ترملة 8 مم",2]
["كتاوت 5 رجل - 24 فولت",25]
["كتاوت 5 رجل - 12 فولت",25]
["لفة شريط لحام صغير",5]
["لفة شريط لحام كبير",10]
["فيوز 15 أمبير",2]
["فيوز 10 أمبير",2]
["فيوز سكية 15 أمبير",2]
["فيوز سكية 10 أمبير",2]
["قطاش",15]
["طقم قطاش",40]
["سلك 1 مم",3.5]
["سلك 2مم",8]
["سلك 0.5مم",2.5]
["سلك سماعة",3.5]
["مكرونة",2]
["سيلكون",15]
["سيلكون حراري",15]
["لمبة زئبق 3 شوكة - 12 فولت",55]
["لمبة زئبق 3 شوكة - 24 فولت",55]
["لمبة زئبق 2 شوكة - 12 فولت",55]
["لمبة زئبق 2 شوكة - 24 فولت",55]
["لمبة زئبق طبق- 24 فولت",55]
["لمبة زئبق طبق- 12 فولت",55]
["لمبة زئبق كلبس- 12 فولت",35]
["لمبة زئبق كلبس- 24 فولت",35]
["لمبة زئبق بسلكة- 12 فولت",35]
["لمبة زئبق بسلكة- 24 فولت",35]
["أكوز 13 مم",20]
["أكوز 17 مم",25]
["كابل",75]
["أرندين",10]
["فلاشر 12 فولت",40]
["فلاشر 24 فولت",40]
["ولاعة 12 فولت",25]
["ولاعة 24 فولت",25]
["كتاوت نور 12 فولت",80]
["كتاوت نور 24 فولت",80]
["أنبوبة أمير",2]
["كلاكس فيام",115]
["كلاكس ياباني",155]
["مفتاح واحد شدة",15]
["ماكينة استوب",45]
["لمبة 5وات",5]
["سراية 120 سم",120]
["سراية جارية",45]
["فانوس خلفي هاشم",40]
["فاوس نمرة",35]
["أفيز بلاستيك",0.5]
["وش فانوس اشارة",30]
["مسمار شك / سلف ",0.25]
["سراية زرقاء مربعة",80]
["فانوس أشارة جامبو",70]
["ترس مارش 105-102",180]
["ترس الدبابة",150]
["فانوس كوباية",35]
["كولية حديد كبير",5]
["كولية حديد صغير",2]
["مسمار بورمة",0.25]
["فانوس مدور هاشم",25]
["فانوس مربع ليد صغير",20]
["كشاف شبورة صغير ليد",80]
["فنارة كوباية صغير",75]
["فنارة كوباية كبير",90]
["مفتاح انتظار جامبو",35]
["ريش كلاكس",25]
["صباع كلاكس",20]
["فيوز زجاج",1]
["زرار زجاج ",15]
["مزيل صدأ صغير",25]
["مزيل صدأ كبير",40]
["طقم مساحة رابر",35]
["طقم مساحة حديد",40]
["ريش مساحة اتوبيس",60]
["فانوس قاصعة",30]
["فانوس قاصعة هاشم ليزر",50]
["كتاوت 2 روح",50]
["لمبة بلحة",5]
["أويل سيل دينمو",50]
["كوعة دينمو",50]
["كارت ليد",20]
["كارت ليد صالون",20]
["فانوس شنب",15]